Cogmind - Beta 15 @@@ ROGUE MODE // 2025.08.22 @ 23:38:14 Player: Krzychu Result: Self-destructed Performance ------------- Evolutions (0) 0 Regions Visited (3) 600 Robots Destroyed (11) 55 Value Destroyed (348) 348 Prototype IDs (6) 120 Alien Tech Used (0) 0 Bonus (800) 800 TOTAL SCORE: 1923 Bonus ------- Registered with UFD 300 Met Optimus in HQ 500 Cogmind --------- Core Integrity 49/250 Matter 272/300 Energy 150/150 System Corruption 4% Temperature Warm (110) Movement Walking (180) Ox1 Location -7/Scraptown Parts ------- > --- POWER (1) -------- Light Angular Momentum Engine > --- PROPULSION (2) --- VSS Leg VSS Leg > --- UTILITY (2) ------ Improved Heat Sink Medium Storage Unit > --- WEAPON (2) ------- Overtuned Pulse Rifle Beamcaster > --- INVENTORY (10) --- Aluminum Leg Overtuned Titanium Leg Scrap Suit Weapon Shielding Overtuned Pulse Rifle Overtuned Barrage Gun Grenade Launcher DRS Beacon (Ready) Peak State ------------ > --- POWER ------------ Light Angular Momentum Engine > --- PROPULSION ------- Overtuned Titanium Leg VSS Leg > --- UTILITY ---------- Improved Heat Sink Medium Storage Unit > --- WEAPON ----------- Overtuned Pulse Rifle Magnetic Acceleration Cannon > --- INVENTORY -------- Aluminum Leg Aluminum Leg Overtuned Titanium Leg Scrap Suit Sensor Array Weapon Shielding Beamcaster Grenade Launcher DRS Beacon [Rating: 25] Favorites ----------- Power Light Nuclear Core Engine Ion Engine Power Core Light Nuclear Core Propulsion Aluminum Leg Leg Aluminum Leg Utility Medium Storage Unit Device Seismic Detector Storage Medium Storage Unit Weapon Assault Rifle Energy Gun Riot Gun Ballistic Gun Assault Rifle Ballistic Cannon Magnetic Acceleration Cannon Build | -11 -10 -10 -7 ------- Run | Yrd Mat Sub Scr Slots Evolved . | . . . . Power . | . . . . Propulsion . | . . . . Utility . | . . . . Weapon . | . . . . Parts Attached 29 | 7 5 1 16 Power 5 | 1 1 1 2 Engine 3 | 1 . 1 1 Core 2 | . 1 . 1 Reactor . | . . . . Propulsion 9 | 2 . . 7 Treads . | . . . . Leg 9 | 2 . . 7 Wheel . | . . . . Hover . | . . . . Flight . | . . . . Utility 7 | 2 4 . 1 Device 4 | 2 1 . 1 Storage 3 | . 3 . . Processor . | . . . . Hackware . | . . . . Protection . | . . . . Artifact . | . . . . Weapon 8 | 2 . . 6 Energy Gun 4 | . . . 4 Energy Cannon . | . . . . Ballistic Gun 3 | 2 . . 1 Ballistic Cannon 1 | . . . 1 Launcher . | . . . . Special Weapon . | . . . . Impact Weapon . | . . . . Slashing Weapon . | . . . . Piercing Weapon . | . . . . Special Melee Weapon . | . . . . Unidentified Prototypes . | . . . . Parts Lost 2 | . . . 2 Power 1 | . . . 1 Propulsion . | . . . . Utility 1 | . . . 1 Weapon . | . . . . Highest Loss Streak 1 | . . . 1 To Critical Strikes . | . . . . Average Backups 9 | 1 7 9 9 Power . | . 1 1 . Propulsion 2 | . 2 3 2 Utility 3 | . 3 4 3 Weapon 2 | . . 1 2 Tool/Special . | . . . . Unused Backups 14 | . 2 3 9 Power 1 | . . 1 . Propulsion 4 | . 1 1 2 Utility 5 | . 1 1 3 Weapon 4 | . . . 4 Tool/Special . | . . . . Average Slot Usage (%) 99 | . 100 100 99 Engine 2 | . 9 . 2 Core 11 | . 4 14 11 Leg 28 | . 28 28 28 Device 14 | . 15 14 13 Storage 13 | . 12 14 14 Energy Gun 10 | . . . 13 Ballistic Gun 15 | . 28 28 12 Ballistic Cannon 1 | . . . 1 Peak Build Rating 25 | 9 10 10 25 Average Rating 12 | 5 8 9 13 On Entrance 7 | . 9 10 10 Naked Turns . | . . . . Heaviest Build 31 | 10 19 19 31 Greatest Support 38 | 20 20 20 38 Greatest Overweight (x) 2 | . . . 2 Average Overweight (x) . | . . . . Largest Inventory Capacity 10 | 5 10 10 10 Average Capacity 9 | 5 9 10 10 Most Carried 10 | 4 10 10 10 Average Carried 9 | 1 7 9 9 Final Capacity 10 | 5 10 10 10 Final Carried 10 | 4 10 10 9 Class Distribution -------------------- 89% | Mutant 10% | Scavenger-Mutant Dominant Class ---------------- Mutant | -10/Materials Mutant | -10/Subcaves Mutant | -7/Scraptown Resources | -11 -10 -10 -7 ----------- Run | Yrd Mat Sub Scr Matter Collected 681 | 294 90 13 284 Remotely . | . . . . Salvage Created 587 | 126 166 59 236 Parts 26 | 3 9 7 7 Haulers Intercepted . | . . . . Recyclers Shooed 1 | . 1 . . Parts Field Recycled . | . . . . Retrieved Matter . | . . . . Parts Self-Destructed 2 | . . 2 . Prevented . | . . . . Kills | -11 -10 -10 -7 ------- Run | Yrd Mat Sub Scr Combat Hostiles Destroyed 8 | . 3 1 4 Guns 5 | . 3 1 1 Cannons 3 | . . . 3 Classes Destroyed 6 | 2 2 1 1 Tunneler 1 | 1 . . . Recycler 2 | 1 1 . . Swarmer 1 | . 1 . . Grunt 2 | . 2 . . Subdweller 1 | . . 1 . Scrapper 2 | . . . 2 Thug 2 | . . . 2 Best Kill Streak 3 | 1 3 1 1 Combat Bots Only 2 | . 2 1 1 Max Kills in Single Turn 1 | 1 1 1 1 Gunslinging . | . . . . Exploded . | . . . . Melee . | . . . . Uniques/NPCs Destroyed . | . . . . Combat | -11 -10 -10 -7 -------- Run | Yrd Mat Sub Scr Hostile Shots Fired 89 | . 12 4 73 Missed 23 | . 3 . 20 Hits 66 | . 9 4 53 Melee 11 | . . . 11 Projectile 55 | . 9 4 42 Critical Strikes 4 | . . . 4 Part Disruptions 2 | . . . 2 Damage Taken 821 | . 107 84 630 Core 201 | . 26 17 158 Absorbed by Shields . | . . . . Core Remaining (%) 100 | 100 . . . Volleys Fired 33 | 6 11 3 13 Largest 2 | 2 2 2 2 Hottest 160 | 40 40 40 160 Shots Fired 61 | 12 21 6 22 Gun 53 | 12 21 6 14 Cannon 8 | . . . 8 Launcher . | . . . . Special . | . . . . Kinetic 49 | 12 21 6 10 Thermal 12 | . . . 12 Explosive . | . . . . Electromagnetic . | . . . . Robot Hit Streak 12 | 6 7 12 8 Robot Miss Streak 3 | 1 3 . 2 Penetration Max . | . . . . Secondary Targets 1 | . 1 . . Max Gunslinging Chain 1 | . 1 . . Shots Hit Robots 44 | 10 13 5 16 Core Hits 20 | 4 7 3 6 Critical Kills . | . . . . Critical Parts Destroyed . | . . . . Critical Strikes 3 | . . . 3 Burn 3 | . . . 3 Melee Attacks . | . . . . Impact . | . . . . Slashing . | . . . . Piercing . | . . . . Sneak Attacks . | . . . . Combat Hostiles . | . . . . Follow-up Attacks . | . . . . Damage Inflicted 773 | 96 145 56 476 Guns 501 | 96 145 56 204 Cannons 272 | . . . 272 Explosions . | . . . . Melee . | . . . . Ramming . | . . . . Kinetic 591 | 96 145 56 294 Thermal 182 | . . . 182 Explosive . | . . . . Electromagnetic . | . . . . Impact . | . . . . Slashing . | . . . . Piercing . | . . . . Highest Corruption 4 | . . . 4 Average Corruption 2 | . . . 2 Corruption Purged . | . . . . Corruption Blocked . | . . . . Effects 10 | . . . 10 Message Errors 2 | . . . 2 Matter Fused 4 | . . . 4 Heat Flow Errors 2 | . . . 2 Energy Discharges 1 | . . . 1 Data Loss (minor) 1 | . . . 1 Overload Shots . | . . . . Overflow Damage . | . . . . Projectiles . | . . . . Explosions . | . . . . Melee . | . . . . Knockbacks 3 | . . . 3 Impact . | . . . . Kinetic 3 | . . . 3 Secondary . | . . . . Self-Inflicted Damage . | . . . . Shots . | . . . . Rammed . | . . . . Targets Rammed . | . . . . Kicked . | . . . . Crushed . | . . . . Highest Temperature 290 | . 10 . 290 Average Temperature 103 | . 6 . 115 Received Heat Transfer 401 | . 51 . 350 Effects 1 | . . . 1 Interference 1 | . . . 1 Siege Activations . | . . . . Martial Activations . | . . . . Shielding Activations . | . . . . Robots Disrupted . | . . . . Combat Hostiles . | . . . . Robots Corrupted . | . . . . Combat Hostiles . | . . . . Parts Fried . | . . . . Impact Corruptions . | . . . . Robots Melted . | . . . . Combat Hostiles . | . . . . Parts Melted 2 | . . . 2 Heat Transferred 557 | . . . 557 Parts Sabotaged . | . . . . Parts Stolen 2 | . . . 2 Parts Stripped . | . . . . Power Chain Reactions . | . . . . Alert | -11 -10 -10 -7 ------- Run | Yrd Mat Sub Scr Maximum Alert Level . | . . . . Low Security (%) 100 | 100 100 . . Level 1 . | . . . . Level 2 . | . . . . Level 3 . | . . . . Level 4 . | . . . . Level 5 . | . . . . High Security . | . . . . Max Security . | . . . . Peak Influence 45 | 5 45 . . Initial . | . . . . Average 5 | . 6 . . Influence Increases 85 | 10 75 . . Destroy 0b10 Robot/C 60 | . 60 . . Destroy 0b10 Robot/NC 15 | 10 5 . . Destroy Leader 10 | . 10 . . Influence Decreases 85 | 10 75 . . Time Decay 85 | 10 75 . . Squads Dispatched . | . . . . Investigation . | . . . . Extermination . | . . . . Reinforcement . | . . . . Assault . | . . . . Garrison . | . . . . Intercept . | . . . . Searches Triggered . | . . . . Construction Impeded . | . . . . Haulers Reinforced . | . . . . Active Scanning Responses . | . . . . Cargo Convoy Interrupts . | . . . . Stealth | -11 -10 -10 -7 --------- Run | Yrd Mat Sub Scr Distress Signals . | . . . . Communications Jammed . | . . . . Distress Signals . | . . . . Times Spotted 28 | . 7 1 20 Peak Tracking Total 7 | . 3 1 7 Tactical Retreats . | . . . . Traps | -11 -10 -10 -7 ------- Run | Yrd Mat Sub Scr Traps Triggered . | . . . . Indirectly . | . . . . Trap Hack Attempts . | . . . . Triggered . | . . . . Disarmed . | . . . . Reprogrammed . | . . . . Reused . | . . . . Traps Extracted . | . . . . Installed . | . . . . Triggered . | . . . . Machines | -11 -10 -10 -7 ---------- Run | Yrd Mat Sub Scr Machines Disabled 1 | . . . 1 Max in Single Turn 1 | . . . 1 Machines Repaired . | . . . . Machines Dismantled . | . . . . Machines Sabotaged . | . . . . Overloaded Fab Kills . | . . . . Hacking | -11 -10 -10 -7 --------- Run | Yrd Mat Sub Scr Machines Accessed 7 | . 1 . 6 Terminals 1 | . 1 . . Fabricators . | . . . . Repair Stations . | . . . . Recycling Units . | . . . . Scanalyzers . | . . . . Garrison Access . | . . . . Total Hacks 40 | . 2 . 38 Successful 40 | . 2 . 38 Failed . | . . . . Catastrophic . | . . . . Database Lockouts . | . . . . Manual . | . . . . Terminals 2 | . 2 . . Fabricators . | . . . . Repair Stations . | . . . . Recycling Units . | . . . . Scanalyzers . | . . . . Garrison Access . | . . . . Terminal Hacks 40 | . 2 . 38 Record 37 | . . . 37 Emergency Access Points 1 | . 1 . . Locate Traps 1 | . 1 . . Proto ID Catalog 1 | . . . 1 Fabricator Hacks . | . . . . Repair Station Hacks . | . . . . Recycling Unit Hacks . | . . . . Scanalyzer . | . . . . Garrison Access Hacks . | . . . . Unauthorized Hacks . | . . . . Terminals . | . . . . Fabricators . | . . . . Repair Stations . | . . . . Recycling Units . | . . . . Scanalyzers . | . . . . Garrison Access . | . . . . Data Cores Recovered . | . . . . Used . | . . . . Hacking Detections . | . . . . Full Trace Events . | . . . . Feedback Events . | . . . . Feedback Blocked . | . . . . Robot Schematics Acquired . | . . . . Robots Built . | . . . . Authchips . | . . . . Time . | . . . . Total Robot Build Rating . | . . . . Part Schematics Acquired . | . . . . Parts Built . | . . . . Authchips . | . . . . Time . | . . . . Total Part Build Rating . | . . . . Parts Repaired . | . . . . Time . | . . . . Parts Recycled . | . . . . Recycled Matter . | . . . . Retrieved Matter . | . . . . Retrieved Components . | . . . . Parts Scanalyzed . | . . . . Part Schematics Acquired . | . . . . Parts Damaged . | . . . . Bothacking | -11 -10 -10 -7 ------------ Run | Yrd Mat Sub Scr Used RIF Installer . | . . . . Robots Hacked . | . . . . Non-combat . | . . . . Combat . | . . . . Robot Hacks Applied . | . . . . Relay Couplers Released . | . . . . Fabnet Peak Effective % . | . . . . Robots Rewired . | . . . . Allies Hacked . | . . . . Hacks Repelled . | . . . . Allies | -11 -10 -10 -7 -------- Run | Yrd Mat Sub Scr Total Allies . | . . . . Largest Group . | . . . . Highest-Rated Group . | . . . . Highest-Rated Ally . | . . . . Total Orders . | . . . . Ally Attacks . | . . . . Total Damage . | . . . . Kills . | . . . . Allies Corrupted . | . . . . Allies Melted 16 | . . . 16 Intel | -11 -10 -10 -7 ------- Run | Yrd Mat Sub Scr Active Infowar (turns) 4494 | 44 517 529 3404 Sensors 2 | . 2 . . Terrain 103 | 41 62 . . Seismic 4494 | 44 517 529 3404 Robot Analysis Total . | . . . . Derelict Logs Recovered 3 | . . 1 2 Drone Launches . | . . . . Drone Recoveries . | . . . . Exploration | -11 -10 -10 -7 ------------- Run | Yrd Mat Sub Scr Turns Passed 4986 | 118 517 529 3822 Spaces Moved 2539 | 65 242 295 1937 Core 3 | 3 . . . Treads . | . . . . Legs 2536 | 62 242 295 1937 Wheels . | . . . . Hover . | . . . . Flight . | . . . . Fastest Speed 50 | 50 120 120 95 Average Speed 166 | 116 120 120 180 Slowest Speed 270 | 120 120 120 270 Overloaded Moves . | . . . . Propulsion Burnouts . | . . . . Robots Hopped . | . . . . Potential Cave-ins . | . . . . Cave-ins Triggered . | . . . . Exploration Rate (%) 37 | 4 32 21 93 Regions Visited 3 Branch Regions 2 Pre-discovered Areas . | . . . . Known Exits Taken . | . . . . Unknown Exits Taken 3 | 1 1 1 . Scrap Searched 5 | . . . 5 Spaces Dug . | . . . . Terrain Destroyed . | . . . . Melee . | . . . . Projectile . | . . . . AOE . | . . . . Terrain Rammed . | . . . . Walls Destroyed . | . . . . Machines Disabled . | . . . . Actions | -11 -10 -10 -7 --------- Run | Yrd Mat Sub Scr Total 3248 | 93 451 465 2239 Wait 593 | 12 180 160 241 Move 2536 | 64 241 294 1937 Hop . | . . . . Pick Up 23 | 4 7 3 9 Fast Attach 14 | 7 2 . 5 Attach 6 | . 1 . 5 Detach 2 | . 2 . . Swap 15 | . 2 2 11 Drop 25 | . 5 3 17 Fire 33 | 6 11 3 13 Melee . | . . . . Ram . | . . . . Kick . | . . . . Crush . | . . . . Escape Stasis . | . . . . Rewire 1 | . . . 1 Trap . | . . . . Miscellaneous . | . . . . Route ------- -11/Scrapyard -10/Materials -10/Subcaves -7/Scraptown (discovered 2 exits: [*Fac x2]) History --------- Turn | Location | Event 16 | -11/Scrapyard | Discovered new exit (range 15) 119 | -11/Scrapyard | Entered Materials 313 | -10/Materials | Build established: Mutant 529 | -10/Materials | Discovered new exit (range 5) 636 | -10/Materials | Entered Subcaves 637 | -10/Subcaves | Approached by a straggling Scientist 751 | -10/Subcaves | A swath of the cavern ceiling suddenly collapsed 999 | -10/Subcaves | Scientist uncovered a shortcut to Scraptown 1165 | -10/Subcaves | Entered Scraptown 1718 | -7/Scraptown | Scanned Subdweller tech in exchange for log data 1727 | -7/Scraptown | Learned Factory stockpile data 1729 | -7/Scraptown | Learned location of 1 exit from Research 1748 | -7/Scraptown | Discovered new exit (range 11) 1940 | -7/Scraptown | Visited Shadow of the Wyrm 2018 | -7/Scraptown | Visited Cave Peace 2107 | -7/Scraptown | Visited UFD Registry 2185 | -7/Scraptown | Visited Red Mages 2303 | -7/Scraptown | Visited The Evicted 2847 | -7/Scraptown | Visited Fellowship of the Rings 3075 | -7/Scraptown | Visited Assassins FH 3136 | -7/Scraptown | Visited SPCMW 3488 | -7/Scraptown | Registered with UFD as "Wavemech" 3628 | -7/Scraptown | Visited Derelict Rescue Squad 3640 | -7/Scraptown | Found DRS Beacon 3706 | -7/Scraptown | Visited Science Guys 3780 | -7/Scraptown | Visited Scrapoid Research Area 3889 | -7/Scraptown | Discovered new exit (range 3) 4136 | -7/Scraptown | Visited A0-MCA Data Center 4148 | -7/Scraptown | Given a B- rating by A0-MCA 4184 | -7/Scraptown | Visited Chapter 10 4281 | -7/Scraptown | Met Optimus 4281 | -7/Scraptown | Accepted into 0bPrime 4380 | -7/Scraptown | Visited Research Penetration Think Tank 4406 | -7/Scraptown | Civil war broke out across Scraptown 4481 | -7/Scraptown | Lost 5 allies 4487 | -7/Scraptown | Found Scrap Suit 4496 | -7/Scraptown | Visited Abandonware Association 4501 | -7/Scraptown | Learned abandonware demo "KABOOM.EXE" 4501 | -7/Scraptown | Learned abandonware demo "POISON.EXE" 4571 | -7/Scraptown | Lost 4 allies 4592 | -7/Scraptown | Optimus destroyed in the chaos of civil war 4730 | -7/Scraptown | Lost 3 allies 4761 | -7/Scraptown | Build established: Scavenger-Mutant 4869 | -7/Scraptown | Lost 4 allies 4983 | -7/Scraptown | Core integrity fell below 50% 4987 | -7/Scraptown | Self-destructed Last Messages --------------- 04871_ System corrupted: Energy discharge (-43). 04892_ System corrupted: Matter fused (-10). 04912_ Ovr. Titanium Leg recovered from malfunction. 04923_ System corrupted: Matter fused (-8). 04924_ Acquired 27 matter. 04946_ Ovr. Titanium Leg suddenly begins malfunctioning. 04952_ Dropped Ovr. Titanium Leg. 04952_ Acquired VSS Leg. 04954_ Dropped Aluminum Leg. 04957_ GH-YPP(E): "It's not too late to join us in victory!" 04960_ Acquired Ovr. Barrage Gun. 04962_ Acquired 20 matter. 04966_ Ovr. Titanium Leg suddenly begins malfunctioning. 04980_ Ovr. Pulse Rifle suddenly begins malfunctioning. 04985_ 44-EWS(g) suffers critical hit (Burn). Map ----- +----------------------------------------------------+ | """""""""""""""""""""" "## """""""""#????????? | | """""""""""""""""""""" ## ""!""""""#????????? | | ## ################"" "## """""""""#????????? | | ##????????#"" "############?????????? | | X"#????????#"" ##"""""""#???????????? | | "" "" ##????????#" %! ## """"""#???????????? | | " "" X"#??????###""!= "## ""#???????????? | | " ######### #["%[! ""# ""#???????????? | | "" *%%![% % ""#???????????? | | "" *=!! ! "## "#???????????? | | " ######### #"" %=%="## ""#???????????? | | " "" ""#??????###"!p!!!%[## " """"#???????????? | | "" "" ##????????#""[%!%/ ##########???????????? | | X"#????????#""!%!=%=#?### ###????????????? | | ##????????#""%g%![!###!""""####?????????? | | ## ######??????####""!=!=!*;;=! = != "#?????????? | | """"????????????"""""=!%g[%! %%! %[% ""#?????????? | | """"?????????""""""""![!%%! %=%[ ! = "#?????????? | | ??????? %!=![!;"!% """ "#?????????? | | ????? =!!%!%=#% *# ""#?????????? | | ??? %&!%!##!! ### "#?????????? | | ?? !!%%!## %"""" "#?????????? | | ????! !!!=%# ! ""#?????????? | | """""????"""" """ " "%%!%##[[ "#?????????? | | ###????????####### "#####gj!##"#"#######?????????? | | ???????????????? ???#!@*%=# ###???????????????? | | ??????????????? ???##=!=!# #?????????????????? | | ??????????????? ????#%%=####?????????????????? | | ??????????????? ?????#![%#????????????????????? | | ?????????????? ## ?????#=%%#??##????????????????? | | ?????????????????# ?????#*[!###"########?????????? | | ????????????????????????#%]!** ! #?????????? | | ????????????????????????#!!%% !%* ##?????????? | | ????????????????????????#!=[=[*%! =! #?????????? | | ????????????????????????#!== %! #?????????? | | ????????????????????????#%*% ! #?????????? | | ????????????????????????#= /############?????????? | | ######################### =%#####????????????????? | | #"""##"""##"""##"""##"|"# =!""""#????????????????? | | # ""##" "##" ==#""|##" # "" "#????????????????? | | = % !%!= %&% =!!! "#????????????????? | | !!% ! *!%%=[*! [%=% [*" "#????????????????? | | =% !=!!!*!=!![![!!=""""#????????????????? | | #"""##" |##" "##!!$#"""|##%######????????????????? | | #"""##"""##"""##""[##"""####?????????????????????? | | ?########################????????????????????????? | | ?????????????????????????????????????????????????? | | ?????????????????????????????????????????????????? | | ?????????????????????????????????????????????????? | | ?????????????????????????????????????????????????? | +----------------------------------------------------+ Best States ------------- Heat Dissipation 39 Energy Generation 18 Energy Capacity 250 Matter Stores 300 Matter Capacity 300 Sight Range 16 Terrain Scan Range 16 Terrain Scan Density 10 Evasion (%) 56 Item Schematics ----------------- None Robot Schematics ------------------ None Fabricated ------------ Nothing Repaired ---------- Nothing Alien Tech Used ----------------- None Achievements -------------- None Challenges ------------ None Game ------ Seed ConstructDeuteriumRipteeth Manual? 0 Play Time 01:43:51 Cumulative 54.5 hours Start 2025.08.22 @ 18:19:05 End 2025.08.22 @ 23:38:14 Sessions 3 Manual Loads 0 Difficulty Rogue Special Mode None Game No. 33 Rogue 33 Adventurer 0 Explorer 0 Win Type - Total 0 Types 0/0/0/0/0/0/0/0/0/0 Lore% 19 Gallery% 22 Achievement% 21 Wizard Run 0 Options --------- Layout 2 ASCII 0 Keyboard 1 Movement Numpad Keybinds 0 Fullscreen 1 Font 24/Smallcaps Map View 50x44 Zoom Use 1% Tactical HUD 1 Map Filters NONE Filters NONE Steam 1 RUN: 7121b607-a66e-4323-be05-d2e061d0cf5a